Cogmind - Beta 13 @@@ ROGUE MODE // 2024.06.01 @ 19:08:24 Player: Blade Result: Self-destructed Performance ------------- Evolutions (1) 500 Regions Visited (2) 400 Robots Destroyed (21) 105 Value Destroyed (550) 550 Prototype IDs (1) 20 Alien Tech Used (0) 0 Bonus (0) 0 TOTAL SCORE: 1575 Bonus ------- None Cogmind --------- Core Integrity 281/400 Matter 300/300 Energy 100/100 System Corruption 0% Temperature Cool (27) Movement Walking (260) Ox2 Location -9/Materials Parts ------- > --- POWER (1) -------- (None) > --- PROPULSION (2) --- Aluminum Leg > --- UTILITY (3) ------ Large Storage Unit Sensor Array Core Shielding > --- WEAPON (3) ------- Light Assault Rifle Improved Assault Rifle > --- INVENTORY (15) --- Ion Engine Light Ion Engine Light Treads Light Treads Aluminum Leg Aluminum Leg Wheel Wheel Small Storage Unit Terrain Scanner Mining Laser Peak State ------------ > --- POWER ------------ Ion Engine > --- PROPULSION ------- Aluminum Leg Aluminum Leg > --- UTILITY ---------- Large Storage Unit Sensor Array Core Shielding > --- WEAPON ----------- Assault Rifle Light Assault Rifle Improved Assault Rifle > --- INVENTORY -------- Ion Engine Light Ion Engine Light Treads Light Treads Aluminum Leg Wheel Wheel Small Storage Unit Terrain Scanner Mining Laser [Rating: 12] Favorites ----------- Power Light Ion Engine Engine Light Ion Engine Propulsion Aluminum Leg Leg Aluminum Leg Utility Large Storage Unit Device Sensor Array Storage Large Storage Unit Protection Core Shielding Weapon Light Assault Rifle Ballistic Gun Light Assault Rifle Build | -11 -10 -9 ------- Run | Yrd Mat Mat Slots Evolved 2 | . . 2 Power . | . . . Propulsion . | . . . Utility 1 | . . 1 Weapon 1 | . . 1 Parts Attached 13 | . 4 9 Power 2 | . 1 1 Engine 2 | . 1 1 Core . | . . . Reactor . | . . . Propulsion 3 | . . 3 Treads . | . . . Leg 3 | . . 3 Wheel . | . . . Hover . | . . . Flight . | . . . Utility 5 | . 3 2 Device 1 | . . 1 Storage 2 | . 2 . Processor . | . . . Hackware . | . . . Protection 2 | . 1 1 Artifact . | . . . Weapon 3 | . . 3 Energy Gun . | . . . Energy Cannon . | . . . Ballistic Gun 3 | . . 3 Ballistic Cannon . | . . . Launcher . | . . . Special Weapon . | . . . Impact Weapon . | . . . Slashing Weapon . | . . . Piercing Weapon . | . . . Special Melee Weapon . | . . . Unidentified Prototypes 1 | . . 1 Parts Lost 7 | . 1 6 Power 2 | . 1 1 Propulsion 2 | . . 2 Utility 1 | . . 1 Weapon 2 | . . 2 Highest Loss Streak 2 | . 1 2 To Critical Strikes . | . . . Average Slot Usage (%) 93 | . 92 93 Engine 11 | . 12 10 Leg 24 | . 28 21 Device 3 | . . 6 Storage 13 | . 17 11 Protection 10 | . 5 14 Ballistic Gun 28 | . 28 29 Naked Turns . | . . . Heaviest Build 37 | 10 26 37 Greatest Support 20 | 20 20 20 Greatest Overweight (x) 3 | . 1 3 Average Overweight (x) . | . . 1 Largest Inventory Capacity 15 | 8 15 15 Average Capacity 13 | 8 11 15 Most Carried 11 | 6 9 11 Average Carried 8 | 6 7 9 Final Capacity 15 | 8 15 15 Final Carried 11 | 6 9 11 Class Distribution -------------------- 47% | Mutant 21% | Tank 15% | Scavenger-Mutant 15% | Scavenger-Skirmisher Dominant Class ---------------- Mutant | -10/Materials Tank | -9/Materials Resources | -11 -10 -9 ----------- Run | Yrd Mat Mat Matter Collected 554 | 200 67 287 Remotely . | . . . Salvage Created 773 | . 180 593 Parts 50 | . 9 41 Haulers Intercepted 1 | . . 1 Recyclers Shooed 3 | . . 3 Parts Field Recycled . | . . . Retrieved Matter . | . . . Parts Self-Destructed . | . . . Prevented . | . . . Kills | -11 -10 -9 ------- Run | Yrd Mat Mat Combat Hostiles Destroyed 16 | . 4 12 Guns 16 | . 4 12 Classes Destroyed 7 | . 1 6 Worker 1 | . . 1 Hauler 1 | . . 1 Recycler 1 | . . 1 Watcher 2 | . . 2 Swarmer 3 | . . 3 Grunt 12 | . 4 8 Sentry 1 | . . 1 Best Kill Streak 6 | . 2 6 Combat Bots Only 4 | . 2 4 Max Kills in Single Turn 1 | . 1 1 Gunslinging . | . . . Exploded . | . . . Melee . | . . . Uniques/NPCs Destroyed . | . . . Combat | -11 -10 -9 -------- Run | Yrd Mat Mat Hostile Shots Fired 141 | . 33 108 Missed 31 | . 8 23 Damage Taken 1225 | . 304 921 Core 201 | . 82 119 Absorbed by Shields . | . . . Redirected to Shielding 25 | . . 25 Core Remaining (%) 83 | 100 67 . Volleys Fired 80 | . 30 50 Largest 3 | . 2 3 Hottest 63 | . 40 63 Shots Fired 183 | . 60 123 Gun 183 | . 60 123 Cannon . | . . . Launcher . | . . . Special . | . . . Kinetic 183 | . 60 123 Thermal . | . . . Explosive . | . . . Electromagnetic . | . . . Robot Hit Streak 10 | . 10 10 Robot Miss Streak 6 | . 6 6 Penetration Max . | . . . Secondary Targets 1 | . . 1 Max Gunslinging Chain 1 | . . 1 Shots Hit Robots 118 | . 36 82 Core Hits 46 | . 13 33 Critical Kills 1 | . . 1 Critical Parts Destroyed 3 | . 1 2 Critical Strikes 4 | . 1 3 Destroy 4 | . 1 3 Melee Attacks . | . . . Impact . | . . . Slashing . | . . . Piercing . | . . . Sneak Attacks . | . . . Combat Hostiles . | . . . Follow-up Attacks . | . . . Damage Inflicted 1169 | . 301 868 Guns 1138 | . 289 849 Cannons . | . . . Explosions . | . . . Melee . | . . . Ramming 31 | . 12 19 Kinetic 1138 | . 289 849 Thermal . | . . . Explosive . | . . . Electromagnetic . | . . . Impact . | . . . Slashing . | . . . Piercing . | . . . Highest Corruption . | . . . Average Corruption . | . . . Corruption Purged . | . . . Corruption Blocked . | . . . Overload Shots . | . . . Overflow Damage . | . . . Projectiles . | . . . Explosions . | . . . Melee . | . . . Knockbacks 1 | . . 1 Impact 1 | . . 1 Kinetic . | . . . Secondary . | . . . Self-Inflicted Damage . | . . . Shots . | . . . Rammed . | . . . Targets Rammed 9 | . 2 7 Kicked 9 | . 2 7 Crushed . | . . . Highest Temperature 130 | . 18 130 Average Temperature 35 | . 4 42 Received Heat Transfer 633 | . 174 459 Siege Activations . | . . . Robots Corrupted . | . . . Combat Hostiles . | . . . Parts Fried . | . . . Impact Corruptions . | . . . Robots Melted . | . . . Combat Hostiles . | . . . Parts Melted . | . . . Heat Transferred . | . . . Parts Sabotaged . | . . . Parts Stolen . | . . . Parts Stripped . | . . . Power Chain Reactions . | . . . Alert | -11 -10 -9 ------- Run | Yrd Mat Mat Peak Influence 207 | . 104 207 Initial . | . . . Average 70 | . 72 68 Maximum Alert Level 1 | . . 1 Low Security (%) 98 | 100 100 96 Level 1 1 | . . 3 Level 2 . | . . . Level 3 . | . . . Level 4 . | . . . Level 5 . | . . . High Security . | . . . Max Security . | . . . Squads Dispatched 2 | . 1 1 Investigation . | . . . Extermination . | . . . Reinforcement 2 | . 1 1 Assault . | . . . Garrison . | . . . Intercept . | . . . Searches Triggered . | . . . Construction Impeded . | . . . Haulers Reinforced . | . . . Active Scanning Responses . | . . . Cargo Convoy Interrupts . | . . . Stealth | -11 -10 -9 --------- Run | Yrd Mat Mat Distress Signals 2 | . . 2 Communications Jammed . | . . . Distress Signals . | . . . Times Spotted 34 | . 6 28 Peak Tracking Total 7 | . 3 7 Tactical Retreats 3 | . . 3 Traps | -11 -10 -9 ------- Run | Yrd Mat Mat Traps Triggered . | . . . Indirectly . | . . . Trap Hack Attempts . | . . . Triggered . | . . . Disarmed . | . . . Reprogrammed . | . . . Reused . | . . . Traps Extracted . | . . . Installed . | . . . Triggered . | . . . Machines | -11 -10 -9 ---------- Run | Yrd Mat Mat Machines Disabled . | . . . Max in Single Turn . | . . . Machines Repaired . | . . . Machines Dismantled . | . . . Machines Sabotaged . | . . . Overloaded Fab Kills . | . . . Hacking | -11 -10 -9 --------- Run | Yrd Mat Mat Machines Accessed 4 | . 3 1 Terminals 4 | . 3 1 Fabricators . | . . . Repair Stations . | . . . Recycling Units . | . . . Scanalyzers . | . . . Garrison Access . | . . . Total Hacks 8 | . 6 2 Successful 4 | . 3 1 Failed 4 | . 3 1 Catastrophic 1 | . 1 . Database Lockouts . | . . . Manual 3 | . 3 . Terminals 8 | . 6 2 Fabricators . | . . . Repair Stations . | . . . Recycling Units . | . . . Scanalyzers . | . . . Garrison Access . | . . . Terminal Hacks 3 | . 2 1 Unreport Threat 1 | . . 1 Locate Traps 1 | . 1 . Zone Layout 1 | . 1 . Fabricator Hacks . | . . . Repair Station Hacks . | . . . Recycling Unit Hacks . | . . . Scanalyzer . | . . . Garrison Access Hacks . | . . . Unauthorized Hacks 1 | . 1 . Terminals 1 | . 1 . Botnet 1 | . 1 . Fabricators . | . . . Repair Stations . | . . . Recycling Units . | . . . Scanalyzers . | . . . Garrison Access . | . . . Data Cores Recovered . | . . . Used . | . . . Hacking Detections 2 | . 1 1 Full Trace Events . | . . . Feedback Events . | . . . Feedback Blocked . | . . . Robot Schematics Acquired . | . . . Robots Built . | . . . Authchips . | . . . Time . | . . . Total Robot Build Rating . | . . . Part Schematics Acquired . | . . . Parts Built . | . . . Authchips . | . . . Time . | . . . Total Part Build Rating . | . . . Parts Repaired . | . . . Time . | . . . Parts Recycled . | . . . Recycled Matter . | . . . Retrieved Matter . | . . . Retrieved Components . | . . . Parts Scanalyzed . | . . . Part Schematics Acquired . | . . . Parts Damaged . | . . . Bothacking | -11 -10 -9 ------------ Run | Yrd Mat Mat Used RIF Installer . | . . . Robots Hacked . | . . . Non-combat . | . . . Combat . | . . . Robot Hacks Applied . | . . . Relay Couplers Released . | . . . Fabnet Peak Effective % . | . . . Robots Rewired . | . . . Allies Hacked . | . . . Hacks Repelled . | . . . Allies | -11 -10 -9 -------- Run | Yrd Mat Mat Total Allies . | . . . Largest Group . | . . . Highest-Rated Group . | . . . Highest-Rated Ally . | . . . Total Orders . | . . . Ally Attacks . | . . . Total Damage . | . . . Kills . | . . . Allies Corrupted . | . . . Allies Melted . | . . . Intel | -11 -10 -9 ------- Run | Yrd Mat Mat Robot Analysis Total . | . . . Derelict Logs Recovered . | . . . Drone Launches . | . . . Drone Recoveries . | . . . Exploration | -11 -10 -9 ------------- Run | Yrd Mat Mat Turns Passed 984 | 2 425 557 Spaces Moved 414 | 2 220 192 Core . | . . . Treads . | . . . Legs 414 | 2 220 192 Wheels . | . . . Hover . | . . . Flight . | . . . Fastest Speed 120 | 120 120 190 Average Speed 170 | 120 149 195 Slowest Speed 330 | 120 190 330 Overloaded Moves . | . . . Propulsion Burnouts . | . . . Robots Hopped . | . . . Cave-ins Triggered . | . . . Exploration Rate (%) 19 | 2 35 21 Regions Visited 2 Branch Regions . Pre-discovered Areas . | . . . Known Exits Taken . | . . . Unknown Exits Taken 2 | 1 1 . Scrap Searched . | . . . Spaces Dug . | . . . Terrain Destroyed . | . . . Melee . | . . . Projectile . | . . . AOE . | . . . Terrain Rammed . | . . . Walls Destroyed . | . . . Machines Disabled . | . . . Actions | -11 -10 -9 --------- Run | Yrd Mat Mat Total 540 | 1 266 273 Wait 22 | . 8 14 Move 412 | 1 219 192 Hop . | . . . Pick Up 2 | . 2 . Fast Attach 8 | . 3 5 Attach 1 | . . 1 Detach . | . . . Swap 4 | . 1 3 Drop 2 | . 1 1 Fire 80 | . 30 50 Melee . | . . . Ram . | . . . Kick 9 | . 2 7 Crush . | . . . Escape Stasis . | . . . Rewire . | . . . Trap . | . . . Miscellaneous . | . . . Route ------- -11/Scrapyard -10/Materials -9/Materials History --------- Turn | Location | Event 1 | -11/Scrapyard | Discovered new exit (range 1) 3 | -11/Scrapyard | Entered Materials 312 | -10/Materials | Build established: Mutant 421 | -10/Materials | Discovered new exit (range 3) 428 | -10/Materials | Entered another Materials area 428 | -9/Materials | Evolved 2 slots: Utility x1, Weapon x1 985 | -9/Materials | Self-destructed Last Messages --------------- 00943_ M-13 Machinist knocked back. 00944_ Acquired 30 matter. 00947_ R-06 Scavenger collects Aluminum Leg. 00950_ Aluminum Leg destroyed. 00951_ R-06 Scavenger destroyed. 00954_ Ion Engine destroyed. 00957_ G-34 Mercenary destroyed. 00958_ R-06 Scavenger collects Aluminum Leg. 00959_ ALERT: Hostiles spotted, dispatching reinforcements to Terminal M002. 00959_ Acquired 33 matter. 00961_ R-06 Scavenger collects Tractor Beam. 00964_ R-06 Scavenger collects Sml. Storage Unit. 00965_ R-06 Scavenger collects Aluminum Leg. 00968_ R-06 Scavenger collects Heat Sink. 00969_ R-06 Scavenger collects Com. Wheel. 00969_ R-06 Scavenger collects Particle Gun. 00982_ K-01 Serf collects debris. 00985_ Critical hit (Burn: +37). Map ----- +----------------------------------------------------+ | ?????????????????????????????????????????????????? | | ?????????????????????????????????????????????????? | | ???????????????????????????????? ??????????????? | | ???????????????????????????????? #?????????????? | | ???????????????????????????????# #?????????????? | | ???????????????????????????????# #?????????????? | | ???????????????????????????????# #??##########?? | | ???????????????????????????????# #??# #?? | | ???????????????????????????????# #??# #?? | | ????????????????????#####????### #??# ### | | ????????????????????? ##### #??# / | | ?????????????????????? ^ #??# ### | | ??????????????????????? #??# #?? | | ???????????????????????? g ^ #??# #?? | | ????????????#????????????# """ #??# ! #?? | | ???????##+### ???????????# """ ? #??# * #?? | | ??? ??+ ???????????# """ ######+######?? | | ??# # ??????##### ###### | | ???? / ??????# %% % | | ???????# ?????# kk##### % ##### | | ???????# ######+##s#???##+#########+#####?? | | ???????# / ? % # #???????????# *%* #?? | | ???????# # # #???????????# T![""" #?? | | ???????# # # #???????????# """ #?? | | ???????# ?##+######%#???????????# """ #?? | | ???????# ?T #????#@#???????????# #?? | | ???????# ? ? ??? ??????????# """ #?? | | ???????# # #?????????# """ #?? | | ???????# """ # #?????????# """ #?? | | ???????# """ ? # [! Y#?????????# ??? | | ???????# ?"" # [! ! ?????????#######????? | | ??????? ?? # [ ##???????????????????? | | ?????? ??? + #????????????????????? | | ??????? ???? # #????????????????????? | | ?????????????#+####### " " #????????????????????? | | ?????????????????????# "R" #????????????????????? | | ?????????????????????# """ #????????????????????? | | ?????????????????????# ? #????????????????????? | | ?????????????????????#????###????????????????????? | | ?????????????????????????????????????????????????? | | ?????????????????????????????????????????????????? | | ?????????????????????????????????????????????????? | | ?????????????????????????????????????????????????? | | ?????????????????????????????????????????????????? | | ?????????????????????????????????????????????????? | | ?????????????????????????????????????????????????? | | ?????????????????????????????????????????????????? | | ?????????????????????????????????????????????????? | | ?????????????????????????????????????????????????? | | ?????????????????????????????????????????????????? | +----------------------------------------------------+ Best States ------------- Heat Dissipation 28 Energy Generation 10 Energy Capacity 250 Matter Stores 300 Matter Capacity 300 Sight Range 16 Robot Scan Range 14 Terrain Scan Density 10 Armor Coverage 225 Core Shielding 20 Evasion (%) 55 Item Schematics ----------------- None Robot Schematics ------------------ None Fabricated ------------ Nothing Alien Tech Used ----------------- None Achievements -------------- None Challenges ------------ None Game ------ Seed BombardmentCannonConstruct Manual? 0 Play Time 00:08:34 Cumulative 75.5 hours Start 2024.06.01 @ 19:02:56 End 2024.06.01 @ 19:08:24 Sessions 1 Manual Loads 0 Difficulty Rogue Special Mode None Game No. 106 Rogue 22 Adventurer 79 Explorer 5 Win Type - Total 2 Types 2/0/0/0/0/0/0/0/0 Lore% 40 Gallery% 51 Achievement% 39 Wizard Run 0 Options --------- Layout 1 ASCII 0 Keyboard 0 Movement Arrows Keybinds 0 Fullscreen 2 Font 24/Smallcaps Map View 50x35 Zoom Use 0% Tactical HUD 1 Map Filters NONE Filters NONE Steam 1 RUN: 6692ac9c-1201-4038-bfdf-9877f2ec88de